[Event "Late-Titled-Tuesday-Blitz-May-07-2024"]
[Site "Chess.com"]
[Date "2024.05.07"]
[Round "2"]
[White "Hirna2005"]
[Black "Adar_07"]
[Result "0-1"]
[WhiteElo "2333"]
[BlackElo "2733"]
[TimeControl "180+1"]
[EndTime "14:13:10 PDT"]
[Termination "Adar_07 won by resignation"]

1. e4 {[%clk 0:03:00.9]} 1... c6 {[%clk 0:02:59.6]} 2. Nc3 {[%clk 0:03:00.4]}
2... d5 {[%clk 0:03:00.5]} 3. Nf3 {[%clk 0:03:00.4]} 3... Bg4 {[%clk 0:02:53.2]}
4. h3 {[%clk 0:02:59.8]} 4... Bxf3 {[%clk 0:02:51.3]} 5. Qxf3 {[%clk 0:03:00.7]}
5... e6 {[%clk 0:02:51.9]} 6. d3 {[%clk 0:03:00.4]} 6... Nf6 {[%clk 0:02:51.7]}
7. Bd2 {[%clk 0:03:00.5]} 7... Bb4 {[%clk 0:02:50.8]} 8. exd5 {[%clk 0:02:51.9]}
8... cxd5 {[%clk 0:02:50.7]} 9. Be2 {[%clk 0:02:49.2]} 9... Nc6 {[%clk
0:02:50.7]} 10. a3 {[%clk 0:02:46.7]} 10... Nd4 {[%clk 0:02:49.7]} 11. Qg3
{[%clk 0:02:44.2]} 11... Nxc2+ {[%clk 0:02:39.9]} 12. Kd1 {[%clk 0:02:43.9]}
12... Nxa1 {[%clk 0:02:39.6]} 13. axb4 {[%clk 0:02:42.4]} 13... Nb3 {[%clk
0:02:37.3]} 14. Qxg7 {[%clk 0:02:30.2]} 14... Rg8 {[%clk 0:02:37.3]} 15. Qh6
{[%clk 0:02:30.5]} 15... Nxd2 {[%clk 0:02:37.8]} 16. Kxd2 {[%clk 0:02:30.4]}
16... Rxg2 {[%clk 0:02:36.9]} 17. d4 {[%clk 0:02:22.7]} 17... Rc8 {[%clk
0:02:34.8]} 18. Bb5+ {[%clk 0:02:21.7]} 18... Ke7 {[%clk 0:02:35]} 19. Re1
{[%clk 0:02:07.8]} 19... Rxf2+ {[%clk 0:02:33.7]} 20. Kc1 {[%clk 0:02:07.9]}
20... Qd6 {[%clk 0:02:31.5]} 21. Kb1 {[%clk 0:02:03.6]} 21... Rxb2+ {[%clk
0:02:31.1]} 22. Kxb2 {[%clk 0:02:01.9]} 22... Qxb4+ {[%clk 0:02:30.9]} 23. Ka2
{[%clk 0:02:00.7]} 23... Rxc3 {[%clk 0:02:28]} 24. Rxe6+ {[%clk 0:01:54.8]}
24... Kxe6 {[%clk 0:02:28.9]} 0-1

[Event "Late-Titled-Tuesday-Blitz-May-07-2024"]
[Site "Chess.com"]
[Date "2024.05.07"]
[Round "2"]
[White "Arek_pacitan"]
[Black "Walter_White_Poland"]
[Result "1-0"]
[WhiteElo "2718"]
[BlackElo "2425"]
[TimeControl "180+1"]
[EndTime "14:13:19 PDT"]
[Termination "Arek_pacitan won by resignation"]

1. e4 {[%clk 0:03:00.9]} 1... c5 {[%clk 0:02:58.7]} 2. Nf3 {[%clk 0:03:00.6]}
2... e6 {[%clk 0:02:57.7]} 3. d4 {[%clk 0:02:59.2]} 3... cxd4 {[%clk 0:02:57.4]}
4. Nxd4 {[%clk 0:03:00.1]} 4... Nc6 {[%clk 0:02:57.9]} 5. c4 {[%clk 0:03:00]}
5... Nf6 {[%clk 0:02:53.1]} 6. Nc3 {[%clk 0:03:00.5]} 6... Bb4 {[%clk
0:02:51.7]} 7. Nxc6 {[%clk 0:03:00.4]} 7... dxc6 {[%clk 0:02:51.8]} 8. Qxd8+
{[%clk 0:02:59.1]} 8... Kxd8 {[%clk 0:02:51.7]} 9. f3 {[%clk 0:02:57.1]} 9...
Bxc3+ {[%clk 0:02:48.1]} 10. bxc3 {[%clk 0:02:56.9]} 10... e5 {[%clk 0:02:48.6]}
11. Ba3 {[%clk 0:02:50.6]} 11... Re8 {[%clk 0:02:43.9]} 12. O-O-O+ {[%clk
0:02:49.2]} 12... Kc7 {[%clk 0:02:43.2]} 13. Bd6+ {[%clk 0:02:48.8]} 13... Kb6
{[%clk 0:02:43]} 14. c5+ {[%clk 0:02:49.1]} 14... Ka5 {[%clk 0:02:42.8]} 15. Kb2
{[%clk 0:02:25.6]} 15... b6 {[%clk 0:02:31.5]} 16. Bc4 {[%clk 0:02:21]} 16...
Be6 {[%clk 0:02:28.5]} 17. Bb3 {[%clk 0:02:19.8]} 17... bxc5 {[%clk 0:02:20]}
18. Bxc5 {[%clk 0:02:11.8]} 18... Nd7 {[%clk 0:02:04.9]} 19. Bb4+ {[%clk
0:02:11.1]} 19... Kb6 {[%clk 0:02:04.6]} 20. Bxe6 {[%clk 0:02:12]} 20... Rxe6
{[%clk 0:02:00.2]} 21. Rxd7 {[%clk 0:02:11.8]} 21... c5 {[%clk 0:02:00.4]} 22.
Ba3 {[%clk 0:02:11.6]} 1-0

[Event "Late-Titled-Tuesday-Blitz-May-07-2024"]
[Site "Chess.com"]
[Date "2024.05.07"]
[Round "2"]
[White "hsd2016"]
[Black "Perecke"]
[Result "1-0"]
[WhiteElo "2351"]
[BlackElo "2535"]
[TimeControl "180+1"]
[EndTime "14:13:34 PDT"]
[Termination "hsd2016 won by resignation"]

1. d4 {[%clk 0:03:00.9]} 1... Nf6 {[%clk 0:02:57.7]} 2. c4 {[%clk 0:03:00.9]}
2... e6 {[%clk 0:02:58.6]} 3. Nc3 {[%clk 0:03:01.2]} 3... Bb4 {[%clk 0:02:58.7]}
4. Bd2 {[%clk 0:02:59.8]} 4... d5 {[%clk 0:02:56.1]} 5. Nf3 {[%clk 0:02:59.1]}
5... O-O {[%clk 0:02:55.9]} 6. e3 {[%clk 0:02:59.3]} 6... c5 {[%clk 0:02:53.8]}
7. dxc5 {[%clk 0:02:57.9]} 7... Bxc5 {[%clk 0:02:53.2]} 8. Bd3 {[%clk
0:02:57.7]} 8... dxc4 {[%clk 0:02:52.1]} 9. Bxc4 {[%clk 0:02:57.6]} 9... b6
{[%clk 0:02:52.2]} 10. O-O {[%clk 0:02:57.5]} 10... Bb7 {[%clk 0:02:52.7]} 11.
Qe2 {[%clk 0:02:58.1]} 11... Nbd7 {[%clk 0:02:50.8]} 12. Rfd1 {[%clk 0:02:58.4]}
12... Qe7 {[%clk 0:02:51]} 13. Bb3 {[%clk 0:02:57.1]} 13... Rfd8 {[%clk
0:02:49.5]} 14. e4 {[%clk 0:02:53.8]} 14... Ng4 {[%clk 0:02:45.7]} 15. Bg5
{[%clk 0:02:46]} 15... f6 {[%clk 0:02:08.6]} 16. Bh4 {[%clk 0:02:46]} 16... Nde5
{[%clk 0:02:08.2]} 17. Nxe5 {[%clk 0:02:44.6]} 17... Nxe5 {[%clk 0:02:09.1]} 18.
Bg3 {[%clk 0:02:43.7]} 18... Nc6 {[%clk 0:01:57.9]} 19. Nb5 {[%clk 0:02:39]}
19... a6 {[%clk 0:01:55.9]} 20. Nc7 {[%clk 0:02:39.4]} 20... Nd4 {[%clk
0:01:49.6]} 21. Rxd4 {[%clk 0:02:38.8]} 21... Bxd4 {[%clk 0:01:49.7]} 22. Nxe6
{[%clk 0:02:38.6]} 22... Kh8 {[%clk 0:01:44.2]} 23. Nxd8 {[%clk 0:02:36.4]}
23... Rxd8 {[%clk 0:01:45.1]} 24. Rd1 {[%clk 0:02:35.1]} 24... Qxe4 {[%clk
0:01:31.9]} 25. Qxe4 {[%clk 0:02:34.6]} 25... Bxe4 {[%clk 0:01:32.8]} 26. Bc7
{[%clk 0:02:35.1]} 26... Bxf2+ {[%clk 0:01:32.2]} 27. Kxf2 {[%clk 0:02:34.1]}
27... Rxd1 {[%clk 0:01:32.6]} 28. Bxd1 {[%clk 0:02:34.5]} 28... b5 {[%clk
0:01:32.6]} 29. Bf3 {[%clk 0:02:33.7]} 1-0

[Event "Late-Titled-Tuesday-Blitz-May-07-2024"]
[Site "Chess.com"]
[Date "2024.05.07"]
[Round "2"]
[White "toninhojit"]
[Black "stollenmonster"]
[Result "1-0"]
[WhiteElo "2611"]
[BlackElo "2861"]
[TimeControl "180+1"]
[EndTime "14:14:15 PDT"]
[Termination "toninhojit won by resignation"]

1. d4 {[%clk 0:03:00.9]} 1... Nf6 {[%clk 0:02:59.8]} 2. c4 {[%clk 0:03:01.3]}
2... e6 {[%clk 0:03:00.6]} 3. Nf3 {[%clk 0:03:01.6]} 3... d5 {[%clk 0:03:01.1]}
4. g3 {[%clk 0:03:01.8]} 4... Ne4 {[%clk 0:03:01.4]} 5. Bg2 {[%clk 0:03:01.8]}
5... Be7 {[%clk 0:03:01.4]} 6. O-O {[%clk 0:03:02.2]} 6... O-O {[%clk
0:03:02.1]} 7. b3 {[%clk 0:03:01.7]} 7... f5 {[%clk 0:03:02]} 8. Ba3 {[%clk
0:03:01.5]} 8... c6 {[%clk 0:03:02.5]} 9. Bxe7 {[%clk 0:03:01.3]} 9... Qxe7
{[%clk 0:03:03.4]} 10. Qc1 {[%clk 0:03:01.5]} 10... Bd7 {[%clk 0:03:03.9]} 11.
Na3 {[%clk 0:03:01.3]} 11... Be8 {[%clk 0:03:03.1]} 12. Nc2 {[%clk 0:03:01.9]}
12... Nd7 {[%clk 0:03:03.6]} 13. Nce1 {[%clk 0:03:02.4]} 13... g5 {[%clk
0:03:01.3]} 14. Nd3 {[%clk 0:03:02.7]} 14... Bg6 {[%clk 0:03:00.2]} 15. Nfe5
{[%clk 0:03:01.2]} 15... Nxe5 {[%clk 0:02:59.2]} 16. Nxe5 {[%clk 0:03:01.2]}
16... Nd6 {[%clk 0:02:56.9]} 17. c5 {[%clk 0:03:00.9]} 17... Nf7 {[%clk
0:02:56.3]} 18. f4 {[%clk 0:02:46.6]} 18... Nxe5 {[%clk 0:02:54.4]} 19. fxe5
{[%clk 0:02:45.6]} 19... h6 {[%clk 0:02:55]} 20. b4 {[%clk 0:02:45.1]} 20... Kg7
{[%clk 0:02:55.1]} 21. a4 {[%clk 0:02:45.3]} 21... Rf7 {[%clk 0:02:51.6]} 22. b5
{[%clk 0:02:45.5]} 22... Raf8 {[%clk 0:02:51.9]} 23. e3 {[%clk 0:02:39.5]} 23...
Bh5 {[%clk 0:02:51.2]} 24. Qd2 {[%clk 0:02:36.3]} 24... Kh8 {[%clk 0:02:43]} 25.
Rab1 {[%clk 0:02:34.6]} 25... Rg8 {[%clk 0:02:41.3]} 26. bxc6 {[%clk 0:02:33.8]}
26... bxc6 {[%clk 0:02:41.1]} 27. a5 {[%clk 0:02:34.7]} 27... Bg6 {[%clk
0:02:38.5]} 28. a6 {[%clk 0:02:34.8]} 28... Qf8 {[%clk 0:02:38]} 29. Rb7 {[%clk
0:02:33.2]} 29... Bh5 {[%clk 0:02:29.4]} 30. Rfb1 {[%clk 0:02:32.6]} 30... f4
{[%clk 0:02:23]} 31. Rxf7 {[%clk 0:02:32.2]} 31... Qxf7 {[%clk 0:02:23.7]} 32.
Rb7 {[%clk 0:02:31.9]} 32... Qf5 {[%clk 0:02:19]} 33. exf4 {[%clk 0:02:21.7]}
33... gxf4 {[%clk 0:02:18.6]} 34. Qxf4 {[%clk 0:02:22.4]} 34... Qxf4 {[%clk
0:02:17.7]} 35. gxf4 {[%clk 0:02:23.3]} 35... Bf3 {[%clk 0:02:08.6]} 36. Kf2
{[%clk 0:02:14.7]} 36... Bxg2 {[%clk 0:02:07.1]} 37. Rxa7 {[%clk 0:02:15.1]}
37... Be4 {[%clk 0:02:07.6]} 38. Rb7 {[%clk 0:02:06.6]} 38... Rg2+ {[%clk
0:02:06.3]} 39. Kf1 {[%clk 0:02:05.1]} 39... Rxh2 {[%clk 0:02:05.3]} 40. a7
{[%clk 0:02:04.9]} 40... Ra2 {[%clk 0:02:05.9]} 41. Rb8+ {[%clk 0:02:04.5]}
41... Kg7 {[%clk 0:02:05.7]} 42. a8=Q {[%clk 0:02:05.2]} 42... Rxa8 {[%clk
0:02:05.8]} 43. Rxa8 {[%clk 0:02:05.2]} 43... Kg6 {[%clk 0:02:04.8]} 44. Rf8
{[%clk 0:02:05]} 44... h5 {[%clk 0:02:04]} 45. Rf6+ {[%clk 0:02:04]} 45... Kg7
{[%clk 0:02:04.5]} 46. Rxe6 {[%clk 0:02:03.8]} 46... h4 {[%clk 0:02:05.3]} 47.
Kg1 {[%clk 0:02:03.4]} 1-0

[Event "Late-Titled-Tuesday-Blitz-May-07-2024"]
[Site "Chess.com"]
[Date "2024.05.07"]
[Round "2"]
[White "merinasian"]
[Black "Mbneu"]
[Result "0-1"]
[WhiteElo "2491"]
[BlackElo "2219"]
[TimeControl "180+1"]
[EndTime "14:14:15 PDT"]
[Termination "Mbneu won by resignation"]

1. d4 {[%clk 0:03:00.9]} 1... Nf6 {[%clk 0:02:59.2]} 2. Nf3 {[%clk 0:03:00.2]}
2... c5 {[%clk 0:02:59.1]} 3. d5 {[%clk 0:02:59.9]} 3... e6 {[%clk 0:02:58.5]}
4. Nc3 {[%clk 0:02:59.9]} 4... d6 {[%clk 0:02:54.2]} 5. e4 {[%clk 0:02:54.7]}
5... e5 {[%clk 0:02:54.1]} 6. Be2 {[%clk 0:02:43.5]} 6... a6 {[%clk 0:02:50]} 7.
a4 {[%clk 0:02:43]} 7... Be7 {[%clk 0:02:46.3]} 8. h3 {[%clk 0:02:42.2]} 8... h6
{[%clk 0:02:44.1]} 9. Be3 {[%clk 0:02:42.3]} 9... Nh7 {[%clk 0:02:43]} 10. Nd2
{[%clk 0:02:42.1]} 10... Bg5 {[%clk 0:02:39.1]} 11. Nc4 {[%clk 0:02:41.5]} 11...
Bxe3 {[%clk 0:02:35.9]} 12. Nxe3 {[%clk 0:02:41.4]} 12... g6 {[%clk 0:02:34.3]}
13. Qd2 {[%clk 0:02:31.1]} 13... Nd7 {[%clk 0:02:32.1]} 14. Nc4 {[%clk
0:02:28.8]} 14... Nb6 {[%clk 0:02:30.8]} 15. Qxh6 {[%clk 0:02:26.6]} 15... Nxc4
{[%clk 0:02:28.7]} 16. Bxc4 {[%clk 0:02:26.6]} 16... Bd7 {[%clk 0:02:24.9]} 17.
Qg7 {[%clk 0:02:11.5]} 17... Ke7 {[%clk 0:02:14.6]} 18. O-O {[%clk 0:02:05]}
18... Nf6 {[%clk 0:02:12.5]} 19. f4 {[%clk 0:01:49.5]} 19... Nh5 {[%clk
0:02:06.4]} 20. Qxh8 {[%clk 0:01:36.4]} 20... Qxh8 {[%clk 0:02:07.3]} 21. f5
{[%clk 0:01:36.6]} 21... g5 {[%clk 0:02:03.2]} 22. f6+ {[%clk 0:01:35.4]} 22...
Nxf6 {[%clk 0:02:01.4]} 23. Rf2 {[%clk 0:01:35.4]} 23... Rf8 {[%clk 0:01:51]}
24. Raf1 {[%clk 0:01:35.8]} 24... Nh5 {[%clk 0:01:50.8]} 25. Ne2 {[%clk
0:01:30.6]} 25... Nf4 {[%clk 0:01:48.1]} 0-1

[Event "Late-Titled-Tuesday-Blitz-May-07-2024"]
[Site "Chess.com"]
[Date "2024.05.07"]
[Round "2"]
[White "EsmeraldasAnderson03"]
[Black "FMOlexandrProhorov"]
[Result "0-1"]
[WhiteElo "2517"]
[BlackElo "2303"]
[TimeControl "180+1"]
[EndTime "14:14:44 PDT"]
[Termination "FMOlexandrProhorov won by resignation"]

1. d4 {[%clk 0:02:51.6]} 1... c5 {[%clk 0:03:00.9]} 2. d5 {[%clk 0:02:51.9]}
2... g6 {[%clk 0:02:53.9]} 3. c4 {[%clk 0:02:51.5]} 3... Bg7 {[%clk 0:02:50.9]}
4. Nc3 {[%clk 0:02:52.4]} 4... Bxc3+ {[%clk 0:02:50.6]} 5. bxc3 {[%clk
0:02:52.2]} 5... f5 {[%clk 0:02:51.5]} 6. h4 {[%clk 0:02:50.9]} 6... Nf6 {[%clk
0:02:49.6]} 7. Bg5 {[%clk 0:02:50]} 7... Qa5 {[%clk 0:02:48.4]} 8. Bxf6 {[%clk
0:02:49]} 8... exf6 {[%clk 0:02:48.5]} 9. Qd2 {[%clk 0:02:48.8]} 9... d6 {[%clk
0:02:43.3]} 10. e3 {[%clk 0:02:48.5]} 10... Nd7 {[%clk 0:02:42.9]} 11. Nf3
{[%clk 0:02:48.9]} 11... Nb6 {[%clk 0:02:43]} 12. Bd3 {[%clk 0:02:47.8]} 12...
Bd7 {[%clk 0:02:42.8]} 13. O-O {[%clk 0:02:47.4]} 13... O-O-O {[%clk 0:02:42.7]}
14. Rfb1 {[%clk 0:02:45.5]} 14... Na4 {[%clk 0:02:37.2]} 15. Rb3 {[%clk
0:02:44.5]} 15... Rde8 {[%clk 0:02:28]} 16. Rab1 {[%clk 0:02:42.9]} 16... Re7
{[%clk 0:02:18.6]} 17. Rxb7 {[%clk 0:02:41.1]} 17... Nb6 {[%clk 0:02:11.3]} 18.
Rxd7 {[%clk 0:02:22.1]} 18... Kxd7 {[%clk 0:02:05.8]} 19. e4 {[%clk 0:02:22.1]}
19... fxe4 {[%clk 0:01:59.9]} 20. Qf4 {[%clk 0:02:21.3]} 20... exd3 {[%clk
0:01:52]} 21. Qxf6 {[%clk 0:02:20.9]} 21... Rhe8 {[%clk 0:01:48.7]} 22. Ng5
{[%clk 0:02:20.7]} 22... Qxa2 {[%clk 0:01:45.1]} 23. Rf1 {[%clk 0:02:16.9]}
23... d2 {[%clk 0:01:43.1]} 24. Ne6 {[%clk 0:02:14.6]} 24... Qxc4 {[%clk
0:01:40.1]} 25. Ra1 {[%clk 0:02:09.8]} 25... a6 {[%clk 0:01:33.5]} 26. Rb1
{[%clk 0:02:08.1]} 26... Nxd5 {[%clk 0:01:27.4]} 27. Nxc5+ {[%clk 0:01:38.2]}
27... Qxc5 {[%clk 0:01:23.3]} 28. Rb7+ {[%clk 0:01:33.7]} 28... Kc6 {[%clk
0:01:23.6]} 0-1

[Event "Late-Titled-Tuesday-Blitz-May-07-2024"]
[Site "Chess.com"]
[Date "2024.05.07"]
[Round "2"]
[White "Nadtkins"]
[Black "lilylg"]
[Result "1-0"]
[WhiteElo "2519"]
[BlackElo "2229"]
[TimeControl "180+1"]
[EndTime "14:14:50 PDT"]
[Termination "Nadtkins won by resignation"]

1. Nf3 {[%clk 0:03:00.9]} 1... d5 {[%clk 0:02:48.9]} 2. g3 {[%clk 0:03:01.3]}
2... c6 {[%clk 0:02:48.9]} 3. Bg2 {[%clk 0:03:01.7]} 3... Nf6 {[%clk 0:02:49.6]}
4. c4 {[%clk 0:03:02.1]} 4... g6 {[%clk 0:02:49.9]} 5. b3 {[%clk 0:03:01.5]}
5... Bg7 {[%clk 0:02:50.4]} 6. Bb2 {[%clk 0:03:02]} 6... O-O {[%clk 0:02:50.8]}
7. d3 {[%clk 0:03:01.2]} 7... Bf5 {[%clk 0:02:50.7]} 8. O-O {[%clk 0:03:00.5]}
8... Nbd7 {[%clk 0:02:50.2]} 9. Nh4 {[%clk 0:03:00.9]} 9... Re8 {[%clk
0:02:48.9]} 10. Nxf5 {[%clk 0:03:00.8]} 10... gxf5 {[%clk 0:02:49.8]} 11. Qc2
{[%clk 0:03:00.5]} 11... e6 {[%clk 0:02:49.3]} 12. Nd2 {[%clk 0:03:00.7]} 12...
Kh8 {[%clk 0:02:47.1]} 13. Nf3 {[%clk 0:02:59.9]} 13... h6 {[%clk 0:02:42.3]}
14. Rad1 {[%clk 0:02:55.6]} 14... Rg8 {[%clk 0:02:41.6]} 15. Kh1 {[%clk
0:02:53.6]} 15... Qf8 {[%clk 0:02:34.5]} 16. a3 {[%clk 0:02:52.9]} 16... Ng4
{[%clk 0:02:30.8]} 17. e4 {[%clk 0:02:31.1]} 17... fxe4 {[%clk 0:02:00.1]} 18.
dxe4 {[%clk 0:02:30.1]} 18... Rc8 {[%clk 0:02:01]} 19. Qe2 {[%clk 0:02:11.2]}
19... dxe4 {[%clk 0:01:28.3]} 20. Rxd7 {[%clk 0:01:52.4]} 20... Bxb2 {[%clk
0:01:22.2]} 21. Qxb2+ {[%clk 0:01:53.3]} 21... Rg7 {[%clk 0:01:17.7]} 22. Ne5
{[%clk 0:01:46.3]} 22... Nxe5 {[%clk 0:01:15.2]} 23. Qxe5 {[%clk 0:01:47.2]}
23... f6 {[%clk 0:01:15.8]} 24. Qxe6 {[%clk 0:01:34.4]} 24... Re8 {[%clk
0:01:14.6]} 25. Qh3 {[%clk 0:01:34.4]} 25... Rxd7 {[%clk 0:01:11.5]} 26. Qxd7
{[%clk 0:01:35.1]} 26... Re7 {[%clk 0:01:11.2]} 27. Qf5 {[%clk 0:01:32.1]} 1-0

[Event "Late-Titled-Tuesday-Blitz-May-07-2024"]
[Site "Chess.com"]
[Date "2024.05.07"]
[Round "2"]
[White "TanitoluwaAps116"]
[Black "Chessdude1987"]
[Result "1-0"]
[WhiteElo "2747"]
[BlackElo "2401"]
[TimeControl "180+1"]
[EndTime "14:14:55 PDT"]
[Termination "TanitoluwaAps116 won by resignation"]

1. e4 {[%clk 0:02:51.8]} 1... e6 {[%clk 0:03:00.1]} 2. d4 {[%clk 0:02:50.7]}
2... d5 {[%clk 0:03:00.7]} 3. exd5 {[%clk 0:02:50.4]} 3... exd5 {[%clk 0:03:01]}
4. Nf3 {[%clk 0:02:50.8]} 4... Nf6 {[%clk 0:03:00.9]} 5. Bd3 {[%clk 0:02:50.1]}
5... Bg4 {[%clk 0:03:01]} 6. h3 {[%clk 0:02:42.8]} 6... Bh5 {[%clk 0:03:00.1]}
7. O-O {[%clk 0:02:37.9]} 7... Be7 {[%clk 0:02:59.3]} 8. c3 {[%clk 0:02:35.8]}
8... O-O {[%clk 0:02:59]} 9. Bg5 {[%clk 0:02:31.4]} 9... Nbd7 {[%clk 0:02:45.9]}
10. Nbd2 {[%clk 0:02:28.6]} 10... c5 {[%clk 0:02:45.5]} 11. Re1 {[%clk
0:02:22.8]} 11... Re8 {[%clk 0:02:31.9]} 12. Qa4 {[%clk 0:02:12.1]} 12... a6
{[%clk 0:02:25.2]} 13. Bf5 {[%clk 0:02:06.7]} 13... b5 {[%clk 0:02:24.2]} 14.
Qc2 {[%clk 0:01:57.3]} 14... Bg6 {[%clk 0:02:23.7]} 15. Ne5 {[%clk 0:01:31]}
15... Bxf5 {[%clk 0:02:16.2]} 16. Qxf5 {[%clk 0:01:31.9]} 16... g6 {[%clk
0:02:16.5]} 17. Qf3 {[%clk 0:01:25.1]} 17... Nf8 {[%clk 0:02:15.8]} 18. Nc6
{[%clk 0:01:23.7]} 18... Qd6 {[%clk 0:02:10.4]} 19. Nxe7+ {[%clk 0:01:20.7]}
19... Rxe7 {[%clk 0:02:10.3]} 20. Bxf6 {[%clk 0:01:19.4]} 20... Rxe1+ {[%clk
0:02:09.9]} 21. Rxe1 {[%clk 0:01:20.3]} 21... Ne6 {[%clk 0:02:09.8]} 22. dxc5
{[%clk 0:01:18.4]} 22... Qxc5 {[%clk 0:02:09.2]} 23. Nb3 {[%clk 0:01:16.4]}
23... Qc4 {[%clk 0:02:07.2]} 24. Nd4 {[%clk 0:01:14.8]} 24... Re8 {[%clk
0:02:06.4]} 25. Nxe6 {[%clk 0:01:07.9]} 25... fxe6 {[%clk 0:02:06.1]} 26. Bd4
{[%clk 0:01:06.5]} 26... e5 {[%clk 0:02:02.3]} 27. Qf6 {[%clk 0:00:58.9]} 1-0

[Event "Late-Titled-Tuesday-Blitz-May-07-2024"]
[Site "Chess.com"]
[Date "2024.05.07"]
[Round "2"]
[White "HonestJoe1"]
[Black "czasnaszachy"]
[Result "0-1"]
[WhiteElo "2088"]
[BlackElo "2460"]
[TimeControl "180+1"]
[EndTime "14:14:57 PDT"]
[Termination "czasnaszachy won by resignation"]

1. d4 {[%clk 0:03:00.9]} 1... Nf6 {[%clk 0:02:57.9]} 2. c4 {[%clk 0:03:00.7]}
2... e6 {[%clk 0:02:57.3]} 3. g3 {[%clk 0:03:00.2]} 3... c5 {[%clk 0:02:56.3]}
4. d5 {[%clk 0:03:00]} 4... exd5 {[%clk 0:02:56.3]} 5. cxd5 {[%clk 0:02:59.7]}
5... d6 {[%clk 0:02:56.8]} 6. Bg2 {[%clk 0:02:59.7]} 6... b5 {[%clk 0:02:55.4]}
7. Nf3 {[%clk 0:02:58.2]} 7... g6 {[%clk 0:02:54.6]} 8. O-O {[%clk 0:02:57.1]}
8... Bg7 {[%clk 0:02:54.7]} 9. a4 {[%clk 0:02:57]} 9... b4 {[%clk 0:02:52.5]}
10. Nbd2 {[%clk 0:02:53.5]} 10... Ba6 {[%clk 0:02:52.2]} 11. Qc2 {[%clk
0:02:47.9]} 11... Nbd7 {[%clk 0:02:49.6]} 12. Re1 {[%clk 0:02:47.8]} 12... O-O
{[%clk 0:02:47.5]} 13. e4 {[%clk 0:02:47.7]} 13... Re8 {[%clk 0:02:40.7]} 14.
Nc4 {[%clk 0:02:43.7]} 14... Nb6 {[%clk 0:02:40]} 15. Nfd2 {[%clk 0:02:35.9]}
15... Nfxd5 {[%clk 0:02:31.7]} 16. a5 {[%clk 0:02:23.3]} 16... Nxc4 {[%clk
0:02:25.7]} 17. Nxc4 {[%clk 0:02:21.4]} 17... Nc3 {[%clk 0:02:19.7]} 18. bxc3
{[%clk 0:02:03.4]} 18... Bxc4 {[%clk 0:02:19.1]} 19. Bd2 {[%clk 0:01:58]} 19...
b3 {[%clk 0:02:14.9]} 20. Qb2 {[%clk 0:01:54.1]} 20... Rb8 {[%clk 0:02:12.5]}
21. Bf4 {[%clk 0:01:19.8]} 21... Qf6 {[%clk 0:02:01.6]} 22. Rac1 {[%clk
0:01:06.4]} 22... Bd3 {[%clk 0:01:57.3]} 23. Rcd1 {[%clk 0:00:52.6]} 23... Qxc3
{[%clk 0:01:48.8]} 0-1

[Event "Late-Titled-Tuesday-Blitz-May-07-2024"]
[Site "Chess.com"]
[Date "2024.05.07"]
[Round "2"]
[White "Akhayan"]
[Black "Fins0905"]
[Result "0-1"]
[WhiteElo "2427"]
[BlackElo "2735"]
[TimeControl "180+1"]
[EndTime "14:15:01 PDT"]
[Termination "Fins0905 won by resignation"]

1. e4 {[%clk 0:03:00.9]} 1... d5 {[%clk 0:02:59.7]} 2. exd5 {[%clk 0:03:00.2]}
2... Qxd5 {[%clk 0:03:00.6]} 3. Nc3 {[%clk 0:02:59.9]} 3... Qa5 {[%clk
0:03:00.6]} 4. Nf3 {[%clk 0:02:56.3]} 4... Nf6 {[%clk 0:03:00.5]} 5. Be2 {[%clk
0:02:54.4]} 5... Bf5 {[%clk 0:03:00.1]} 6. O-O {[%clk 0:02:53.9]} 6... e6 {[%clk
0:03:00.2]} 7. d3 {[%clk 0:02:52.4]} 7... c6 {[%clk 0:02:59.8]} 8. a3 {[%clk
0:02:45.3]} 8... Nbd7 {[%clk 0:02:59.4]} 9. Nd4 {[%clk 0:02:32.1]} 9... Bg6
{[%clk 0:02:58]} 10. b4 {[%clk 0:02:28.8]} 10... Qc7 {[%clk 0:02:53.3]} 11. Bf3
{[%clk 0:02:21]} 11... Bd6 {[%clk 0:02:51.3]} 12. h3 {[%clk 0:02:20.1]} 12...
Bh2+ {[%clk 0:02:39.2]} 13. Kh1 {[%clk 0:02:19.2]} 13... Be5 {[%clk 0:02:40.1]}
14. Nce2 {[%clk 0:02:04.5]} 14... O-O {[%clk 0:02:36]} 15. Bb2 {[%clk
0:02:04.1]} 15... a5 {[%clk 0:02:32.4]} 16. Qd2 {[%clk 0:02:01.2]} 16... Rfd8
{[%clk 0:02:27]} 17. Rab1 {[%clk 0:01:52.3]} 17... axb4 {[%clk 0:02:22]} 18.
axb4 {[%clk 0:01:51.9]} 18... Nb6 {[%clk 0:02:22.1]} 19. Qe3 {[%clk 0:01:45.9]}
19... Nfd5 {[%clk 0:02:05.9]} 20. Qd2 {[%clk 0:01:44.7]} 20... h6 {[%clk
0:01:53.5]} 21. Rfe1 {[%clk 0:01:43.7]} 21... Ra4 {[%clk 0:01:49]} 22. c3 {[%clk
0:01:38.3]} 22... Rda8 {[%clk 0:01:33.7]} 23. Nb3 {[%clk 0:01:36.1]} 23... Ra2
{[%clk 0:01:28.5]} 24. Na5 {[%clk 0:01:11.8]} 24... Na4 {[%clk 0:01:20]} 25. Ba1
{[%clk 0:01:10.7]} 25... Rxd2 {[%clk 0:01:19.3]} 0-1

[Event "Late-Titled-Tuesday-Blitz-May-07-2024"]
[Site "Chess.com"]
[Date "2024.05.07"]
[Round "2"]
[White "baki83"]
[Black "Stanbad1"]
[Result "1-0"]
[WhiteElo "2923"]
[BlackElo "2619"]
[TimeControl "180+1"]
[EndTime "14:15:02 PDT"]
[Termination "baki83 won by resignation"]

1. e4 {[%clk 0:03:00.9]} 1... e6 {[%clk 0:02:59.6]} 2. d4 {[%clk 0:03:00.6]}
2... d5 {[%clk 0:03:00]} 3. exd5 {[%clk 0:03:01.2]} 3... exd5 {[%clk 0:02:59.9]}
4. Nf3 {[%clk 0:03:01.9]} 4... Bd6 {[%clk 0:02:58.9]} 5. c4 {[%clk 0:03:00.6]}
5... dxc4 {[%clk 0:02:58.9]} 6. Bxc4 {[%clk 0:02:59.3]} 6... Nf6 {[%clk
0:02:59.5]} 7. Qe2+ {[%clk 0:02:53.6]} 7... Qe7 {[%clk 0:02:58.7]} 8. Qxe7+
{[%clk 0:02:53.6]} 8... Kxe7 {[%clk 0:02:58.9]} 9. O-O {[%clk 0:02:53]} 9... Rd8
{[%clk 0:02:59]} 10. Ng5 {[%clk 0:02:45.3]} 10... Ng4 {[%clk 0:02:45.4]} 11. h3
{[%clk 0:02:32.3]} 11... Nh6 {[%clk 0:02:44.3]} 12. Nxh7 {[%clk 0:02:15.1]}
12... Nf5 {[%clk 0:02:33.3]} 13. Re1+ {[%clk 0:02:02.4]} 13... Kd7 {[%clk
0:02:32.7]} 14. Ng5 {[%clk 0:01:31.7]} 14... Nxd4 {[%clk 0:02:24.4]} 15. Nxf7
{[%clk 0:01:30.6]} 15... Rf8 {[%clk 0:02:10.4]} 16. Nxd6 {[%clk 0:01:26.8]}
16... cxd6 {[%clk 0:02:10.2]} 17. Na3 {[%clk 0:01:25.8]} 17... Nbc6 {[%clk
0:02:09.2]} 18. Be3 {[%clk 0:01:25.6]} 18... Nf5 {[%clk 0:01:58.8]} 19. Bg5
{[%clk 0:01:25.3]} 19... Ne5 {[%clk 0:01:57.1]} 20. Rad1 {[%clk 0:01:13.4]}
20... a6 {[%clk 0:01:54]} 21. Rxe5 {[%clk 0:01:11.2]} 21... Kc7 {[%clk
0:01:51.9]} 22. Ree1 {[%clk 0:01:10.1]} 22... b5 {[%clk 0:01:51.6]} 23. Bd5
{[%clk 0:01:10.5]} 23... Rb8 {[%clk 0:01:51.6]} 24. Nc2 {[%clk 0:01:09.4]} 24...
Bd7 {[%clk 0:01:51.1]} 25. Nb4 {[%clk 0:01:09]} 25... Kb6 {[%clk 0:01:50.4]} 26.
g4 {[%clk 0:01:03.1]} 26... Nh6 {[%clk 0:01:48.2]} 27. Bg2 {[%clk 0:01:02]}
27... Nf7 {[%clk 0:01:45.4]} 28. Nd5+ {[%clk 0:01:02]} 28... Kb7 {[%clk
0:01:44.7]} 29. Bd2 {[%clk 0:00:57.2]} 29... Bc6 {[%clk 0:01:44.7]} 30. Re7+
{[%clk 0:00:57]} 1-0